[Event "Early-Titled-Tuesday-Blitz-January-30-2024"]
[Site "Chess.com"]
[Date "2024.01.30"]
[Round "4"]
[White "patzersame"]
[Black "Mesa_1"]
[Result "0-1"]
[WhiteElo "2370"]
[BlackElo "2561"]
[TimeControl "180+1"]
[EndTime "8:41:53 PST"]
[Termination "Mesa_1 won by checkmate"]

1. e4 {[%clk 0:02:59.6]} 1... c5 {[%clk 0:02:59.8]} 2. b4 {[%clk 0:02:59.8]}
2... cxb4 {[%clk 0:02:59.8]} 3. a3 {[%clk 0:03:00.6]} 3... d5 {[%clk 0:02:59.7]}
4. exd5 {[%clk 0:03:01.3]} 4... Qxd5 {[%clk 0:03:00.6]} 5. Nf3 {[%clk
0:03:01.9]} 5... e5 {[%clk 0:03:00.7]} 6. axb4 {[%clk 0:03:02]} 6... Bxb4 {[%clk
0:02:56.3]} 7. c4 {[%clk 0:03:02.4]} 7... Qe6 {[%clk 0:02:49.4]} 8. Bd3 {[%clk
0:03:02.3]} 8... Nf6 {[%clk 0:02:39.2]} 9. O-O {[%clk 0:03:01.6]} 9... O-O
{[%clk 0:02:38.9]} 10. Bb2 {[%clk 0:03:01.9]} 10... Nc6 {[%clk 0:02:38.4]} 11.
Re1 {[%clk 0:03:02.1]} 11... e4 {[%clk 0:02:33.3]} 12. Ng5 {[%clk 0:02:57.9]}
12... Qd6 {[%clk 0:02:17]} 13. Nxe4 {[%clk 0:02:09.2]} 13... Qxd3 {[%clk
0:02:11.9]} 14. Nxf6+ {[%clk 0:02:09.1]} 14... gxf6 {[%clk 0:02:06.3]} 15. Re3
{[%clk 0:02:09.4]} 15... Qd6 {[%clk 0:01:51.2]} 16. Rg3+ {[%clk 0:01:56.6]}
16... Kh8 {[%clk 0:01:50.4]} 17. Qh5 {[%clk 0:01:36.7]} 17... Ne5 {[%clk
0:01:42.2]} 18. Qh6 {[%clk 0:01:04.7]} 18... Rg8 {[%clk 0:01:37.3]} 19. f4
{[%clk 0:00:55.1]} 19... Bc5+ {[%clk 0:01:21.7]} 20. Kh1 {[%clk 0:00:50.7]}
20... Rxg3 {[%clk 0:01:03.9]} 21. hxg3 {[%clk 0:00:42.3]} 21... Ng4 {[%clk
0:00:59]} 22. Qh4 {[%clk 0:00:37.9]} 22... Bf5 {[%clk 0:00:47.2]} 23. Nc3 {[%clk
0:00:37.9]} 23... Nf2+ {[%clk 0:00:42.4]} 24. Kh2 {[%clk 0:00:37.7]} 24... Ng4+
{[%clk 0:00:42.2]} 25. Kh1 {[%clk 0:00:37.8]} 25... Rg8 {[%clk 0:00:42.7]} 26.
Nd5 {[%clk 0:00:37.7]} 26... Rg6 {[%clk 0:00:39.6]} 27. Re1 {[%clk 0:00:36.9]}
27... Rh6 {[%clk 0:00:19.7]} 28. Qxh6 {[%clk 0:00:24.4]} 28... Nxh6 {[%clk
0:00:20.6]} 29. Bxf6+ {[%clk 0:00:24.3]} 29... Kg8 {[%clk 0:00:14.7]} 30. Re8+
{[%clk 0:00:12.3]} 30... Qf8 {[%clk 0:00:15.3]} 31. Re5 {[%clk 0:00:12.3]} 31...
Bg6 {[%clk 0:00:13.9]} 32. d4 {[%clk 0:00:07.6]} 32... Bd6 {[%clk 0:00:14.4]}
33. Ne7+ {[%clk 0:00:06.3]} 33... Bxe7 {[%clk 0:00:14.2]} 34. Rxe7 {[%clk
0:00:07.2]} 34... Nf5 {[%clk 0:00:12.9]} 35. Rd7 {[%clk 0:00:07.3]} 35... Nxg3+
{[%clk 0:00:13]} 36. Kh2 {[%clk 0:00:07.5]} 36... Ne2 {[%clk 0:00:11.9]} 37. d5
{[%clk 0:00:07.1]} 37... Nxf4 {[%clk 0:00:11.4]} 38. d6 {[%clk 0:00:06.4]} 38...
Qh6+ {[%clk 0:00:09.5]} 39. Kg3 {[%clk 0:00:06.5]} 39... Ne2+ {[%clk 0:00:09.7]}
40. Kf2 {[%clk 0:00:06.8]} 40... Qf4+ {[%clk 0:00:10.4]} 41. Kxe2 {[%clk
0:00:07.3]} 41... Qxf6 {[%clk 0:00:10.8]} 42. Rxb7 {[%clk 0:00:07.8]} 42... Qe5+
{[%clk 0:00:10]} 43. Kf3 {[%clk 0:00:07.6]} 43... Be4+ {[%clk 0:00:09.1]} 44.
Kg4 {[%clk 0:00:08.3]} 44... Bxb7 {[%clk 0:00:10]} 45. d7 {[%clk 0:00:09]} 45...
Qe6+ {[%clk 0:00:10]} 46. Kg5 {[%clk 0:00:09.1]} 46... Qxd7 {[%clk 0:00:10.9]}
47. g4 {[%clk 0:00:10]} 47... Bf3 {[%clk 0:00:10.3]} 48. c5 {[%clk 0:00:10.9]}
48... Qxg4+ {[%clk 0:00:10.1]} 49. Kf6 {[%clk 0:00:11.8]} 49... Qf4+ {[%clk
0:00:10.2]} 50. Ke7 {[%clk 0:00:12.7]} 50... Qe5+ {[%clk 0:00:10.3]} 51. Kd7
{[%clk 0:00:13.3]} 51... Qxc5 {[%clk 0:00:09.5]} 52. Ke8 {[%clk 0:00:13]} 52...
Bc6+ {[%clk 0:00:10.2]} 53. Kd8 {[%clk 0:00:13.3]} 53... Qd6+ {[%clk 0:00:10.8]}
54. Kc8 {[%clk 0:00:14.2]} 54... Qd7+ {[%clk 0:00:11.6]} 55. Kb8 {[%clk
0:00:15.1]} 55... Qb7# {[%clk 0:00:12.5]} 0-1

[Event "Early-Titled-Tuesday-Blitz-January-30-2024"]
[Site "Chess.com"]
[Date "2024.01.30"]
[Round "4"]
[White "tarno17"]
[Black "rikchessmx"]
[Result "0-1"]
[WhiteElo "2053"]
[BlackElo "2319"]
[TimeControl "180+1"]
[EndTime "8:41:54 PST"]
[Termination "rikchessmx won on time"]

1. e4 {[%clk 0:03:00.9]} 1... c5 {[%clk 0:02:53.6]} 2. Nf3 {[%clk 0:02:59.8]}
2... e6 {[%clk 0:02:53.2]} 3. Nc3 {[%clk 0:02:57.3]} 3... a6 {[%clk 0:02:52.7]}
4. d3 {[%clk 0:02:54.7]} 4... b5 {[%clk 0:02:53]} 5. g3 {[%clk 0:02:54.5]} 5...
Bb7 {[%clk 0:02:53]} 6. Bg2 {[%clk 0:02:54.7]} 6... d6 {[%clk 0:02:52.1]} 7. O-O
{[%clk 0:02:54.8]} 7... Nd7 {[%clk 0:02:51.6]} 8. Ne2 {[%clk 0:02:42.8]} 8... h5
{[%clk 0:02:24.8]} 9. h4 {[%clk 0:02:41.7]} 9... Be7 {[%clk 0:02:24.7]} 10. Nf4
{[%clk 0:02:40.4]} 10... Ngf6 {[%clk 0:02:23.1]} 11. Nh3 {[%clk 0:02:40.3]}
11... Ng4 {[%clk 0:02:22.8]} 12. Nhg5 {[%clk 0:02:34.6]} 12... Nf8 {[%clk
0:02:16.7]} 13. Qe1 {[%clk 0:02:24.5]} 13... f6 {[%clk 0:02:15.5]} 14. Nh3
{[%clk 0:02:19.9]} 14... Nh7 {[%clk 0:02:15.5]} 15. Nf4 {[%clk 0:02:15.4]} 15...
Nf8 {[%clk 0:02:13.5]} 16. Nh3 {[%clk 0:02:04.1]} 16... e5 {[%clk 0:01:43.6]}
17. Nh2 {[%clk 0:01:46.4]} 17... Nxh2 {[%clk 0:00:54.1]} 18. Kxh2 {[%clk
0:01:47.3]} 18... g5 {[%clk 0:00:51.9]} 19. f4 {[%clk 0:01:37.8]} 19... exf4
{[%clk 0:00:50]} 20. hxg5 {[%clk 0:01:10.6]} 20... fxg5 {[%clk 0:00:47.3]} 21.
gxf4 {[%clk 0:00:57.4]} 21... g4 {[%clk 0:00:47.1]} 22. Ng5 {[%clk 0:00:57.8]}
22... Qd7 {[%clk 0:00:41.7]} 23. a4 {[%clk 0:00:42.2]} 23... b4 {[%clk
0:00:40.6]} 24. c3 {[%clk 0:00:42.1]} 24... a5 {[%clk 0:00:40.2]} 25. cxb4
{[%clk 0:00:40]} 25... axb4 {[%clk 0:00:39.7]} 26. b3 {[%clk 0:00:36.6]} 26...
Rg8 {[%clk 0:00:32.1]} 27. e5 {[%clk 0:00:19.9]} 27... Bxg2 {[%clk 0:00:27.8]}
28. Kxg2 {[%clk 0:00:20.8]} 28... O-O-O {[%clk 0:00:23.4]} 29. e6 {[%clk
0:00:15.5]} 29... Qc6+ {[%clk 0:00:22.8]} 30. Qe4 {[%clk 0:00:15.4]} 30... Qxe4+
{[%clk 0:00:20.3]} 31. dxe4 {[%clk 0:00:15.8]} 31... Bxg5 {[%clk 0:00:20.6]} 32.
fxg5 {[%clk 0:00:15.9]} 32... Nxe6 {[%clk 0:00:21.2]} 33. Rf5 {[%clk 0:00:12.8]}
33... Nd4 {[%clk 0:00:20]} 34. Rf7 {[%clk 0:00:06.9]} 34... h4 {[%clk 0:00:20]}
35. Bf4 {[%clk 0:00:05.4]} 35... h3+ {[%clk 0:00:18]} 36. Kh2 {[%clk 0:00:04.6]}
36... Ne6 {[%clk 0:00:15.9]} 37. Bg3 {[%clk 0:00:02.9]} 37... Nxg5 {[%clk
0:00:14.7]} 38. Rf6 {[%clk 0:00:02.2]} 38... Nf3+ {[%clk 0:00:15.6]} 39. Kh1
{[%clk 0:00:02.1]} 39... d5 {[%clk 0:00:15.8]} 40. e5 {[%clk 0:00:02.1]} 40...
Rgf8 {[%clk 0:00:13.2]} 41. a5 {[%clk 0:00:01.9]} 41... Rxf6 {[%clk 0:00:12.7]}
42. exf6 {[%clk 0:00:02.8]} 42... Rf8 {[%clk 0:00:12.8]} 43. a6 {[%clk
0:00:03.4]} 43... Kd7 {[%clk 0:00:08.2]} 44. a7 {[%clk 0:00:03.7]} 44... Ke6
{[%clk 0:00:08.1]} 45. Bb8 {[%clk 0:00:03.8]} 45... Rxf6 {[%clk 0:00:07.3]} 46.
a8=Q {[%clk 0:00:04]} 46... Rf4 {[%clk 0:00:06.3]} 47. Qc6+ {[%clk 0:00:04.5]}
47... Kf5 {[%clk 0:00:05]} 48. Bxf4 {[%clk 0:00:04.9]} 48... Kxf4 {[%clk
0:00:05.2]} 49. Qd6+ {[%clk 0:00:05.3]} 49... Ke3 {[%clk 0:00:05.2]} 50. Qxd5
{[%clk 0:00:04.6]} 50... g3 {[%clk 0:00:05.1]} 51. Qxc5+ {[%clk 0:00:03.8]}
51... Kf4 {[%clk 0:00:05]} 52. Qxb4+ {[%clk 0:00:03.4]} 52... Ke3 {[%clk
0:00:04.6]} 53. Re1+ {[%clk 0:00:02.9]} 53... Kf2 {[%clk 0:00:02.6]} 54. Qc5+
{[%clk 0:00:01.3]} 54... Kxe1 {[%clk 0:00:02.3]} 55. b4 {[%clk 0:00:01.4]} 55...
Kf1 {[%clk 0:00:01.8]} 0-1

[Event "Early-Titled-Tuesday-Blitz-January-30-2024"]
[Site "Chess.com"]
[Date "2024.01.30"]
[Round "4"]
[White "Kotlyar_K"]
[Black "Sajith_Peiris"]
[Result "0-1"]
[WhiteElo "2478"]
[BlackElo "2259"]
[TimeControl "180+1"]
[EndTime "8:41:56 PST"]
[Termination "Sajith_Peiris won by checkmate"]

1. e4 {[%clk 0:03:00.9]} 1... c6 {[%clk 0:02:59.8]} 2. Nf3 {[%clk 0:02:58.4]}
2... d5 {[%clk 0:02:59.5]} 3. Nc3 {[%clk 0:02:59.3]} 3... Nf6 {[%clk 0:02:58.7]}
4. e5 {[%clk 0:02:58.2]} 4... Ne4 {[%clk 0:02:58.6]} 5. Ne2 {[%clk 0:02:58.7]}
5... Qb6 {[%clk 0:02:58]} 6. d4 {[%clk 0:02:58.4]} 6... e6 {[%clk 0:02:56.1]} 7.
c3 {[%clk 0:02:37.2]} 7... c5 {[%clk 0:02:50.9]} 8. a3 {[%clk 0:02:32.8]} 8...
Nc6 {[%clk 0:02:48.9]} 9. Ng3 {[%clk 0:02:21.1]} 9... Nxg3 {[%clk 0:02:46]} 10.
hxg3 {[%clk 0:02:22]} 10... cxd4 {[%clk 0:02:44.3]} 11. cxd4 {[%clk 0:02:22.9]}
11... Bd7 {[%clk 0:02:40.4]} 12. b4 {[%clk 0:02:13.6]} 12... Rc8 {[%clk
0:02:37.6]} 13. Rb1 {[%clk 0:01:50.8]} 13... Be7 {[%clk 0:02:32.8]} 14. Be3
{[%clk 0:01:39.1]} 14... a6 {[%clk 0:02:28]} 15. Bd3 {[%clk 0:01:38.2]} 15... h6
{[%clk 0:02:24.2]} 16. g4 {[%clk 0:01:38.4]} 16... Na7 {[%clk 0:02:18.5]} 17. g5
{[%clk 0:01:36.6]} 17... Nb5 {[%clk 0:02:00.9]} 18. Bxb5 {[%clk 0:01:14.3]}
18... Bxb5 {[%clk 0:01:55.6]} 19. gxh6 {[%clk 0:01:14.1]} 19... gxh6 {[%clk
0:01:54.7]} 20. Rxh6 {[%clk 0:01:10.4]} 20... Rxh6 {[%clk 0:01:53.4]} 21. Bxh6
{[%clk 0:01:11.3]} 21... Rc6 {[%clk 0:01:46.4]} 22. Rc1 {[%clk 0:01:04.1]} 22...
Qc7 {[%clk 0:01:42.9]} 23. Rxc6 {[%clk 0:01:02]} 23... Qxc6 {[%clk 0:01:42.3]}
24. Qc1 {[%clk 0:00:54.1]} 24... Bc4 {[%clk 0:01:42]} 25. Bg5 {[%clk 0:00:52.1]}
25... Bf8 {[%clk 0:01:37.6]} 26. Bh4 {[%clk 0:00:41.3]} 26... Qc7 {[%clk
0:01:04]} 27. Nd2 {[%clk 0:00:38.2]} 27... b5 {[%clk 0:01:02.3]} 28. Nb3 {[%clk
0:00:30.4]} 28... Be7 {[%clk 0:01:00.3]} 29. Bxe7 {[%clk 0:00:29.9]} 29... Qxe7
{[%clk 0:00:58.4]} 30. Nc5 {[%clk 0:00:28.7]} 30... Qh4 {[%clk 0:00:55.1]} 31.
g3 {[%clk 0:00:13.8]} 31... Qxd4 {[%clk 0:00:52.6]} 32. Qe3 {[%clk 0:00:08.9]}
32... Qa1+ {[%clk 0:00:51]} 33. Kd2 {[%clk 0:00:09.2]} 33... Qb2+ {[%clk
0:00:50.6]} 34. Kd1 {[%clk 0:00:09.3]} 34... Qb1+ {[%clk 0:00:47.4]} 35. Kd2
{[%clk 0:00:09.3]} 35... Qb2+ {[%clk 0:00:43.5]} 36. Kd1 {[%clk 0:00:09.4]}
36... d4 {[%clk 0:00:42.5]} 37. Qf3 {[%clk 0:00:05]} 37... Qb1+ {[%clk
0:00:40.2]} 38. Kd2 {[%clk 0:00:05.2]} 38... Qb2+ {[%clk 0:00:34.7]} 39. Kd1
{[%clk 0:00:05.2]} 39... d3 {[%clk 0:00:33.4]} 40. Qa8+ {[%clk 0:00:03.4]} 40...
Ke7 {[%clk 0:00:33.2]} 41. Qb7+ {[%clk 0:00:02.5]} 41... Kf8 {[%clk 0:00:33.2]}
42. Qc8+ {[%clk 0:00:02.6]} 42... Kg7 {[%clk 0:00:33.3]} 43. Nxd3 {[%clk
0:00:01.5]} 43... Qb3+ {[%clk 0:00:29.5]} 44. Kd2 {[%clk 0:00:01.1]} 44... Qxd3+
{[%clk 0:00:29.5]} 45. Kc1 {[%clk 0:00:02]} 45... Qxa3+ {[%clk 0:00:29.2]} 46.
Kd2 {[%clk 0:00:02.1]} 46... Qxb4+ {[%clk 0:00:29.3]} 47. Ke3 {[%clk 0:00:02.4]}
47... Qc3+ {[%clk 0:00:29.2]} 48. Kf4 {[%clk 0:00:03.2]} 48... Qd4+ {[%clk
0:00:26.8]} 49. Kg5 {[%clk 0:00:02]} 49... Qxe5+ {[%clk 0:00:26.3]} 50. Kh4
{[%clk 0:00:02.1]} 50... Qf6+ {[%clk 0:00:24.1]} 51. Kh3 {[%clk 0:00:03]} 51...
Bf1+ {[%clk 0:00:23.8]} 52. Kh2 {[%clk 0:00:03.1]} 52... Qxf2+ {[%clk
0:00:23.9]} 53. Kh1 {[%clk 0:00:03]} 53... Qg2# {[%clk 0:00:24.3]} 0-1

[Event "Early-Titled-Tuesday-Blitz-January-30-2024"]
[Site "Chess.com"]
[Date "2024.01.30"]
[Round "4"]
[White "JimDiGrease"]
[Black "VinzentSpitzl"]
[Result "1-0"]
[WhiteElo "2937"]
[BlackElo "2619"]
[TimeControl "180+1"]
[EndTime "8:41:57 PST"]
[Termination "JimDiGrease won on time"]

1. d4 {[%clk 0:03:00.9]} 1... Nf6 {[%clk 0:02:58.8]} 2. c4 {[%clk 0:03:01.3]}
2... e6 {[%clk 0:02:59.3]} 3. Bf4 {[%clk 0:03:01.9]} 3... d5 {[%clk 0:02:56]} 4.
Nc3 {[%clk 0:03:02.1]} 4... Bb4 {[%clk 0:02:53.4]} 5. Qa4+ {[%clk 0:03:01.8]}
5... Nc6 {[%clk 0:02:53.2]} 6. e3 {[%clk 0:03:02.4]} 6... O-O {[%clk 0:02:51.6]}
7. Nf3 {[%clk 0:03:02.8]} 7... Re8 {[%clk 0:02:50.4]} 8. Rd1 {[%clk 0:03:00.2]}
8... Bd7 {[%clk 0:02:48.6]} 9. Qc2 {[%clk 0:03:00.1]} 9... h6 {[%clk 0:02:39.3]}
10. a3 {[%clk 0:02:57.5]} 10... Bf8 {[%clk 0:02:38.8]} 11. h3 {[%clk 0:02:54.8]}
11... a6 {[%clk 0:02:22.8]} 12. Be2 {[%clk 0:02:51.7]} 12... dxc4 {[%clk
0:02:22.3]} 13. Bxc4 {[%clk 0:02:52.6]} 13... Bd6 {[%clk 0:02:23]} 14. Ne5
{[%clk 0:02:45.6]} 14... Qe7 {[%clk 0:02:16.8]} 15. O-O {[%clk 0:02:43.1]} 15...
Rad8 {[%clk 0:01:56.6]} 16. Bd3 {[%clk 0:02:40.8]} 16... Nd5 {[%clk 0:01:53.2]}
17. Nxd5 {[%clk 0:02:09.1]} 17... exd5 {[%clk 0:01:53.2]} 18. Nxc6 {[%clk
0:02:08.5]} 18... Bxc6 {[%clk 0:01:53]} 19. Bxd6 {[%clk 0:02:07.1]} 19... Qxd6
{[%clk 0:01:44.9]} 20. Rc1 {[%clk 0:02:07.3]} 20... a5 {[%clk 0:01:36.9]} 21.
Qc3 {[%clk 0:02:01.7]} 21... a4 {[%clk 0:01:31.9]} 22. Qc5 {[%clk 0:02:01.5]}
22... Qd7 {[%clk 0:01:27.8]} 23. Qb4 {[%clk 0:01:48.8]} 23... Re7 {[%clk
0:01:05.4]} 24. Rc5 {[%clk 0:01:48.8]} 24... Ra8 {[%clk 0:00:58.3]} 25. Rfc1
{[%clk 0:01:47.1]} 25... g6 {[%clk 0:00:50.7]} 26. Be2 {[%clk 0:01:35.9]} 26...
Kg7 {[%clk 0:00:48]} 27. Bf3 {[%clk 0:01:36.2]} 27... Qd6 {[%clk 0:00:48.1]} 28.
Bxd5 {[%clk 0:01:32.3]} 28... Bxd5 {[%clk 0:00:44.1]} 29. Rxd5 {[%clk
0:01:33.2]} 29... Qxb4 {[%clk 0:00:43.3]} 30. axb4 {[%clk 0:01:33.7]} 30... c6
{[%clk 0:00:25.6]} 31. Ra5 {[%clk 0:01:24.4]} 31... Ree8 {[%clk 0:00:25.7]} 32.
Ra1 {[%clk 0:01:24.3]} 32... b5 {[%clk 0:00:20.8]} 33. Rxa8 {[%clk 0:01:24.4]}
33... Rxa8 {[%clk 0:00:20.8]} 34. Kf1 {[%clk 0:01:24.9]} 34... Kf6 {[%clk
0:00:20.6]} 35. Ke2 {[%clk 0:01:25.5]} 35... Ke6 {[%clk 0:00:20.9]} 36. e4
{[%clk 0:01:26.1]} 36... Kd6 {[%clk 0:00:20.9]} 37. Ke3 {[%clk 0:01:25.7]} 37...
f6 {[%clk 0:00:21.3]} 38. Ra3 {[%clk 0:01:26]} 38... g5 {[%clk 0:00:21.5]} 39.
Rc3 {[%clk 0:01:22.7]} 39... h5 {[%clk 0:00:20.3]} 40. g3 {[%clk 0:01:21]} 40...
Ra7 {[%clk 0:00:18.3]} 41. f4 {[%clk 0:01:10.3]} 41... g4 {[%clk 0:00:18.4]} 42.
h4 {[%clk 0:01:07.4]} 42... Ra6 {[%clk 0:00:16.4]} 43. f5 {[%clk 0:01:07.6]}
43... Ra8 {[%clk 0:00:10.3]} 44. Kf4 {[%clk 0:01:07.8]} 44... Re8 {[%clk
0:00:10.1]} 45. Rc5 {[%clk 0:01:08.2]} 45... Ra8 {[%clk 0:00:09.1]} 46. e5+
{[%clk 0:01:08.6]} 46... fxe5+ {[%clk 0:00:09.5]} 47. dxe5+ {[%clk 0:01:09.1]}
47... Kd7 {[%clk 0:00:10]} 48. f6 {[%clk 0:01:04.9]} 48... a3 {[%clk 0:00:09.6]}
49. bxa3 {[%clk 0:01:03.8]} 49... Rxa3 {[%clk 0:00:09.8]} 50. Rc2 {[%clk
0:00:58.2]} 50... Rf3+ {[%clk 0:00:04.5]} 51. Kg5 {[%clk 0:00:58.4]} 51... Rxg3
{[%clk 0:00:04.3]} 52. Kxh5 {[%clk 0:00:56.3]} 52... Ke6 {[%clk 0:00:03.4]} 53.
Rxc6+ {[%clk 0:00:54.3]} 53... Kxe5 {[%clk 0:00:03.9]} 54. Kg5 {[%clk
0:00:29.3]} 54... Kd5 {[%clk 0:00:01.5]} 55. f7 {[%clk 0:00:26.7]} 55... Rf3
{[%clk 0:00:01.6]} 56. Rf6 {[%clk 0:00:27.4]} 56... Rxf6 {[%clk 0:00:01.6]} 57.
Kxf6 {[%clk 0:00:28.3]} 57... g3 {[%clk 0:00:01.7]} 58. f8=Q {[%clk 0:00:29.2]}
1-0

[Event "Early-Titled-Tuesday-Blitz-January-30-2024"]
[Site "Chess.com"]
[Date "2024.01.30"]
[Round "4"]
[White "WindWhistler11"]
[Black "ChEsper99"]
[Result "0-1"]
[WhiteElo "2458"]
[BlackElo "2148"]
[TimeControl "180+1"]
[EndTime "8:42:02 PST"]
[Termination "ChEsper99 won by resignation"]

1. Nf3 {[%clk 0:02:51]} 1... c5 {[%clk 0:02:50.3]} 2. g3 {[%clk 0:02:50.4]} 2...
d5 {[%clk 0:02:45.1]} 3. Bg2 {[%clk 0:02:47.4]} 3... Nf6 {[%clk 0:02:45.4]} 4.
c4 {[%clk 0:02:48.1]} 4... Nc6 {[%clk 0:02:42.2]} 5. O-O {[%clk 0:02:48.5]} 5...
e5 {[%clk 0:02:35.1]} 6. cxd5 {[%clk 0:02:32.7]} 6... Nxd5 {[%clk 0:02:34.9]} 7.
d3 {[%clk 0:02:33.4]} 7... Be7 {[%clk 0:02:30.1]} 8. a3 {[%clk 0:02:31.3]} 8...
Be6 {[%clk 0:02:28.9]} 9. Nbd2 {[%clk 0:02:31.6]} 9... O-O {[%clk 0:02:28.2]}
10. Nc4 {[%clk 0:02:31.9]} 10... f6 {[%clk 0:02:18.6]} 11. Bd2 {[%clk 0:02:30]}
11... Qd7 {[%clk 0:02:09.4]} 12. Rc1 {[%clk 0:02:22.5]} 12... Rac8 {[%clk
0:02:09.1]} 13. e4 {[%clk 0:02:12.4]} 13... Nb6 {[%clk 0:02:01.9]} 14. Nxb6
{[%clk 0:01:59.6]} 14... axb6 {[%clk 0:02:02.8]} 15. Be3 {[%clk 0:01:55.6]}
15... Rfd8 {[%clk 0:01:56.9]} 16. Ne1 {[%clk 0:01:55.4]} 16... Nd4 {[%clk
0:01:51.3]} 17. f4 {[%clk 0:01:50]} 17... Bg4 {[%clk 0:01:47.7]} 18. Nf3 {[%clk
0:01:32.1]} 18... Nxf3+ {[%clk 0:01:44.3]} 19. Bxf3 {[%clk 0:01:33]} 19... Bxf3
{[%clk 0:01:42.9]} 20. Qxf3 {[%clk 0:01:31.7]} 20... exf4 {[%clk 0:01:08.8]} 21.
gxf4 {[%clk 0:01:24]} 21... Qxd3 {[%clk 0:01:09]} 22. Rc3 {[%clk 0:01:23.9]}
22... Qb5 {[%clk 0:01:06.6]} 23. Rf2 {[%clk 0:01:16]} 23... Rd3 {[%clk
0:01:02.2]} 24. Qg4 {[%clk 0:01:02.4]} 24... Rcd8 {[%clk 0:00:57.3]} 25. Qe6+
{[%clk 0:00:58.9]} 25... Kf8 {[%clk 0:00:54.5]} 26. Kg2 {[%clk 0:00:51.9]} 26...
Rxc3 {[%clk 0:00:54.4]} 27. bxc3 {[%clk 0:00:51.7]} 27... Qd7 {[%clk 0:00:54.8]}
28. Qxd7 {[%clk 0:00:45.1]} 28... Rxd7 {[%clk 0:00:55.7]} 29. Rb2 {[%clk
0:00:45.6]} 29... Bd8 {[%clk 0:00:55.5]} 30. Kf2 {[%clk 0:00:43.3]} 30... Rd3
{[%clk 0:00:53.7]} 31. Rc2 {[%clk 0:00:42.2]} 31... Ke8 {[%clk 0:00:50.3]} 32.
Ke2 {[%clk 0:00:42.8]} 32... Rd7 {[%clk 0:00:48.4]} 33. Rb2 {[%clk 0:00:42.2]}
33... Ke7 {[%clk 0:00:47.8]} 34. a4 {[%clk 0:00:42.7]} 34... Kd6 {[%clk
0:00:47.5]} 35. a5 {[%clk 0:00:39.5]} 35... bxa5 {[%clk 0:00:44.3]} 36. Rd2+
{[%clk 0:00:32.1]} 36... Kc6 {[%clk 0:00:44.2]} 37. Rxd7 {[%clk 0:00:32.3]}
37... Kxd7 {[%clk 0:00:45.1]} 38. Bxc5 {[%clk 0:00:32.9]} 38... b5 {[%clk
0:00:44.1]} 39. Kd3 {[%clk 0:00:32.2]} 39... Kc6 {[%clk 0:00:41.8]} 40. Bd4
{[%clk 0:00:32.2]} 40... a4 {[%clk 0:00:38.7]} 41. Kc2 {[%clk 0:00:29.8]} 41...
Be7 {[%clk 0:00:38.5]} 42. h4 {[%clk 0:00:28.9]} 42... Bc5 {[%clk 0:00:33.9]}
43. h5 {[%clk 0:00:23.8]} 43... h6 {[%clk 0:00:28]} 44. e5 {[%clk 0:00:17]}
44... fxe5 {[%clk 0:00:24.7]} 45. Bxe5 {[%clk 0:00:16.4]} 45... Bf8 {[%clk
0:00:24]} 46. Bd4 {[%clk 0:00:15.4]} 46... Kd5 {[%clk 0:00:22.4]} 47. Kd3 {[%clk
0:00:15.8]} 47... a3 {[%clk 0:00:20.8]} 48. Kc2 {[%clk 0:00:16.3]} 48... Ke4
{[%clk 0:00:20.6]} 49. Be5 {[%clk 0:00:16.5]} 49... Kf5 {[%clk 0:00:20.8]} 50.
Kb3 {[%clk 0:00:16.8]} 50... Kg4 {[%clk 0:00:20.9]} 51. Bd4 {[%clk 0:00:11.4]}
51... Kxh5 {[%clk 0:00:20.5]} 52. f5 {[%clk 0:00:12.3]} 52... Kg5 {[%clk
0:00:19.7]} 53. f6 {[%clk 0:00:13.1]} 53... gxf6 {[%clk 0:00:19.5]} 54. Be3+
{[%clk 0:00:14]} 54... Kg6 {[%clk 0:00:18.5]} 55. Bd4 {[%clk 0:00:14.5]} 55...
f5 {[%clk 0:00:18.6]} 56. Bf2 {[%clk 0:00:15.4]} 56... Kg5 {[%clk 0:00:18.7]}
57. c4 {[%clk 0:00:16.1]} 57... bxc4+ {[%clk 0:00:18.9]} 58. Kxc4 {[%clk
0:00:16.5]} 58... Kg4 {[%clk 0:00:16.8]} 59. Bd4 {[%clk 0:00:16.4]} 59... f4
{[%clk 0:00:15.2]} 60. Kd3 {[%clk 0:00:15.9]} 60... Kg3 {[%clk 0:00:14.3]} 61.
Ke4 {[%clk 0:00:16.6]} 61... f3 {[%clk 0:00:13.6]} 62. Be5+ {[%clk 0:00:14.9]}
62... Kg2 {[%clk 0:00:13.7]} 63. Bd4 {[%clk 0:00:14.9]} 63... f2 {[%clk
0:00:13.9]} 0-1